bitfinex-derivatives/quotes_SOLF0:USTF0_20250228
["timestamp","ask_amount","ask_price","bid_price","bid_amount"]
[1740705118673,1.3144525,136.59,136.49,7.3319]
[1740705118870,1.3144525,136.59,136.48,7.3324]
[1740705119075,1.3144525,136.59,136.46,1.9894]
[1740705119277,0.05182938,136.54,136.51,0.0465697]
[1740705120076,0.05182938,136.54,136.51,7.3773697]
[1740705120580,0.05182938,136.54,136.52,7.3305]
[1740705120784,0.05182938,136.54,136.51,0.0465697]
[1740705121282,0.05182938,136.54,136.51,7.3773697]
[1740705121478,0.05182938,136.54,136.51,0.0465697]
[1740705121683,0.05182938,136.54,136.53,7.3301]
[1740705121874,0.05182938,136.54,136.51,0.0465697]
[1740705123283,7.38152938,136.54,136.51,0.0465697]
[1740705123684,0.05182938,136.54,136.51,0.0465697]
[1740705124680,0.05182938,136.54,136.53,7.3301]
[1740705126078,0.05182938,136.54,136.52,7.3303]
[1740705127084,29.74922629,136.6,136.52,3.7867]
[1740705127685,37.07602629,136.6,136.54,7.3292]
[1740705127885,29.74922629,136.6,136.54,7.3292]
[1740705128079,190.34350322,136.62,136.56,0.05049708]
[1740705128080,100.04352973,136.62,136.56,0.05049708]
[1740705128481,7.3274,136.58,136.56,0.05049708]
[1740705129187,7.3279,136.57,136.56,0.05049708]
[1740705134186,7.3279,136.57,136.56,9.708e-05]
[1740705135891,9.2371,136.57,136.56,9.708e-05]
[1740705139788,0.05090467,136.58,136.56,9.708e-05]
[1740705140796,7.37880467,136.58,136.56,9.708e-05]
[1740705141100,0.05090467,136.58,136.56,9.708e-05]
[1740705141295,7.3279,136.57,136.56,9.708e-05]
[1740705142000,0.05090467,136.58,136.56,9.708e-05]
[1740705142399,7.37860467,136.58,136.56,9.708e-05]
[1740705145799,0.05090467,136.58,136.56,7.32849708]
[1740705146002,0.05090467,136.58,136.56,9.708e-05]
[1740705147000,0.05090467,136.58,136.56,7.32829708]
[1740705150305,7.37840467,136.58,136.56,9.708e-05]
[1740705151705,0.05090467,136.58,136.56,9.708e-05]
[1740705152808,0.05090467,136.58,136.57,7.3279]
[1740705153106,0.05090467,136.58,136.56,9.708e-05]
[1740705153506,0.05090467,136.58,136.56,7.32829708]
[1740705155809,0.05090467,136.58,136.57,7.3279]
[1740705156207,0.05090467,136.58,136.56,9.708e-05]
[1740705156408,0.05090467,136.58,136.56,7.32829708]
[1740705156709,0.05090467,136.58,136.56,9.708e-05]
[1740705157208,0.05090467,136.58,136.56,7.32819708]
[1740705158607,0.05090467,136.58,136.57,7.3279]
[1740705159811,0.05090467,136.58,136.56,7.32839708]
[1740705160310,0.05090467,136.58,136.56,9.708e-05]
[1740705161502,7.3279,136.57,136.56,9.708e-05]
[1740705162413,7.37850467,136.58,136.56,9.708e-05]
[1740705162606,0.05090467,136.58,136.56,9.708e-05]
[1740705163703,39.79678279,136.66,136.56,21.96009708]
[1740705163912,39.79678279,136.66,136.57,3.829]
[1740705164811,39.79678279,136.66,136.62,7.3252]
[1740705165209,39.79678279,136.66,136.6,0.04698136]
[1740705165411,39.79678279,136.66,136.63,7.3245]
[1740705165611,10.0475565,136.64,136.63,7.3245]
[1740705165816,160.94150737,136.65,136.63,7.38059448]
[1740705166513,157.85830737,136.65,136.64,7.3242]
[1740705168215,156.28640737,136.65,136.64,7.3242]
[1740705168418,112.14750738,136.65,136.64,29.2842]
[1740705169410,1.9589,136.72,136.64,21.96]
[1740705169615,1.9589,136.72,136.65,7.3232]
[1740705169815,1.9589,136.72,136.6,204.5]
[1740705170017,1.9589,136.72,136.67,0.05302809]
[1740705171521,9.2789,136.72,136.67,0.05302809]
[1740705171722,1.9589,136.72,136.67,0.05302809]
[1740705171918,7.3204,136.71,136.67,0.05302809]
[1740705172114,1.9589,136.72,136.67,0.05302809]
[1740705172520,7.3206,136.71,136.67,0.05302809]
[1740705173318,62.23321316,136.8,136.67,0.05302809]
[1740705173522,29.26780443,136.79,136.6,204.5]
[1740705173723,1.31735508,136.78,136.72,0.05603653]
[1740705174023,22.07,136.76,136.65,7.3234]
[1740705175118,7.3205,136.71,136.65,7.3234]
[1740705175323,7.3205,136.71,136.69,0.05187974]
[1740705175929,7.3209,136.7,136.69,0.05187974]
[1740705176228,0.05006285,136.72,136.6,193.0]
[1740705176229,27.9362,136.71,136.6,7.3261]
[1740705176417,27.9362,136.71,136.57,90.36112041]
[1740705176722,49.9962,136.71,136.54,203.16097051]
[1740705176927,1.31586383,136.7,136.54,203.16097051]
[1740705177431,7.38078291,136.63,136.61,0.05312869]
[1740705177627,11.52,136.66,136.57,7.3277]
[1740705177927,0.05104823,136.63,136.61,0.04727067]
[1740705179029,0.05104823,136.63,136.61,7.37267067]
[1740705179428,0.05104823,136.63,136.61,0.04727067]
[1740705179925,0.05104823,136.63,136.62,7.3252]
[1740705180822,0.05104823,136.63,136.61,7.37287067]
[1740705181026,0.05104823,136.63,136.61,0.04727067]
[1740705181427,0.05104823,136.63,136.62,7.3252]
[1740705181621,0.05104823,136.63,136.61,0.04727067]
[1740705181923,4.041,136.69,136.65,7.3236]
[1740705182130,41.26922629,136.74,136.58,204.52]
[1740705182323,41.26922629,136.74,136.62,1.8734]
[1740705182930,7.3206,136.71,136.67,7.3222]
[1740705183121,0.04681814,136.69,136.67,7.37051839]
[1740705186928,0.04681814,136.69,136.67,0.04831839]
[1740705187133,0.04681814,136.69,136.68,7.322]
[1740705189231,0.04681814,136.69,136.67,0.04831839]
[1740705189537,0.04681814,136.69,136.59,194.9474]
[1740705189728,7.3231,136.66,136.61,7.3255]
[1740705190036,1.8648,136.68,136.56,13.4322]
[1740705190435,7.3237,136.65,136.6,7.3259]
[1740705190627,0.05074496,136.63,136.61,0.05344669]
[1740705190829,7.3234,136.66,136.61,7.37894669]
[1740705191026,0.05290503,136.63,136.61,7.37894669]
[1740705191234,0.05290503,136.63,136.61,0.05344669]
[1740705194336,0.05290503,136.63,136.53,88.48214924]
[1740705194637,11.5,136.67,136.53,88.48214924]
[1740705194837,1.945,136.66,136.53,88.48214924]
[1740705195034,7.3253,136.62,136.58,7.3271]
[1740705195434,0.04833326,136.61,136.59,0.05043777]
[1740705196038,7.37423326,136.61,136.59,0.05043777]
[1740705196234,0.04833326,136.61,136.59,0.05043777]
[1740705196435,0.04833326,136.61,136.53,86.55064924]
[1740705196436,0.04833326,136.61,136.51,1.9956]
[1740705196741,1.945,136.66,136.51,1.9956]
[1740705197437,0.04917885,136.6,136.57,0.0513501]
[1740705197643,1.945,136.66,136.51,1.9956]
[1740705197833,1.945,136.66,136.57,0.0560084]
[1740705197834,0.04952095,136.6,136.57,0.0560084]
[1740705198038,7.3281,136.57,136.53,7.3299]
[1740705198232,7.38356501,136.57,136.53,7.3299]
[1740705198442,0.05546501,136.57,136.54,0.04938021]
[1740705199242,0.05546501,136.57,136.55,7.329]
[1740705199434,0.05546501,136.57,136.54,0.04938021]
[1740705201441,0.05546501,136.57,136.56,7.3285]
[1740705205048,13.445,136.66,136.56,21.96]
[1740705205243,13.445,136.66,136.6,7.326]
[1740705205747,7.3242,136.64,136.61,7.3257]
[1740705205943,13.445,136.66,136.61,7.3257]
[1740705206147,13.445,136.66,136.52,14.6611]
[1740705206348,7.37118873,136.65,136.62,0.04914344]
[1740705206543,7.3238,136.65,136.62,0.04638891]
[1740705206749,7.37608732,136.65,136.62,0.04638891]
[1740705207350,7.37608732,136.65,136.62,7.37138891]
[1740705207752,0.05228732,136.65,136.62,7.37138891]
[1740705208354,0.05228732,136.65,136.62,0.04638891]
[1740705209652,0.05228732,136.65,136.62,7.37148891]
[1740705210547,0.05228732,136.65,136.63,7.3244]
[1740705211054,0.05228732,136.65,136.62,0.04638891]
[1740705211256,0.05228732,136.65,136.62,7.37138891]
[1740705211654,7.37598732,136.65,136.62,0.04638891]
[1740705212055,0.05228732,136.65,136.62,0.04638891]
[1740705212454,0.05228732,136.65,136.55,194.9476]
[1740705212655,1.945,136.66,136.55,194.9476]
[1740705212853,7.325,136.63,136.55,194.9476]
[1740705213253,7.325,136.63,136.58,7.327]
[1740705213654,7.38022674,136.62,136.59,0.04980345]
[1740705214457,0.05492674,136.62,136.59,7.37660345]
[1740705214961,0.05492674,136.62,136.59,0.04980345]
[1740705215461,0.05492674,136.62,136.61,7.3258]
[1740705219065,1.8648,136.68,136.65,7.3233]
[1740705219561,1.8648,136.68,136.57,1.8962]
[1740705219766,1.8648,136.68,136.66,7.3228]
[1740705220268,1.9173301,136.68,136.66,7.37167316]
[1740705220457,1.9173301,136.68,136.66,0.04887316]
[1740705220663,0.0525301,136.68,136.67,7.3226]
[1740705222864,1.9699,136.74,136.66,0.04887316]
[1740705223070,1.9699,136.74,136.7,7.3208]
[1740705223270,15.3437,136.78,136.66,0.04887316]
[1740705223471,7.3188,136.74,136.68,7.3215]
[1740705223672,7.3188,136.74,136.62,195.0516]
[1740705223864,1.8611,136.77,136.62,195.0516]
[1740705224067,0.05078198,136.69,136.68,7.322]
[1740705224269,7.3184,136.75,136.63,0.1426]
[1740705224470,0.05158996,136.7,136.67,0.05551641]
[1740705224670,0.05158996,136.7,136.69,7.3215]
[1740705227971,7.3185,136.75,136.7,7.3205]
[1740705228276,7.3179,136.76,136.64,1.9713]
[1740705228475,7.3179,136.76,136.64,194.9713]
[1740705228774,7.3179,136.76,136.71,7.32]
[1740705228975,7.3179,136.76,136.64,194.9713]
[1740705229280,7.3179,136.76,136.72,7.3196]
[1740705229667,0.04688247,136.75,136.72,7.3196]
[1740705229874,0.04688247,136.75,136.73,0.04629582]
[1740705232578,7.36538247,136.75,136.73,0.04629582]
[1740705233775,0.04688247,136.75,136.73,0.04629582]
[1740705233974,0.04688247,136.75,136.73,7.36559582]
[1740705234180,0.04688247,136.75,136.73,0.04629582]
[1740705234778,0.04688247,136.75,136.74,7.3188]
[1740705239477,0.04688247,136.75,136.73,7.36549582]
[1740705240172,0.04688247,136.75,136.73,0.04629582]
[1740705243184,0.04688247,136.75,136.73,7.36559582]
[1740705244287,0.04688247,136.75,136.74,7.3188]
[1740705245784,0.04688247,136.75,136.73,0.04629582]
[1740705246985,0.04688247,136.75,136.74,7.3188]
[1740705247693,0.04688247,136.75,136.73,0.04629582]
[1740705247892,0.04688247,136.75,136.73,7.36529582]
[1740705248483,0.04688247,136.75,136.74,7.3188]
[1740705248887,0.04688247,136.75,136.73,0.04629582]
[1740705249283,0.04688247,136.75,136.64,194.9713]
[1740705249593,3.8437,136.78,136.64,194.9713]
[1740705249990,7.3191,136.74,136.64,194.9713]
[1740705250190,7.3191,136.74,136.7,7.3205]
[1740705250391,7.3184,136.75,136.64,194.9713]
[1740705250693,0.0475173,136.73,136.64,194.9713]
[1740705250893,3.8437,136.78,136.68,0.04777332]
[1740705251095,0.05544018,136.7,136.64,194.9713]
[1740705251394,3.8437,136.78,136.64,1.9713]
[1740705251594,3.197e-05,136.68,136.66,0.05380317]
[1740705251790,3.8437,136.78,136.66,193.0]
[1740705252594,7.3175,136.77,136.74,7.3188]
[1740705253097,7.35747829,136.77,136.74,0.05393329]
[1740705253297,7.3179,136.76,136.74,0.05393329]
[1740705253798,7.35747829,136.77,136.74,0.05393329]
[1740705254095,7.35747829,136.77,136.74,7.37263329]
[1740705254295,7.35737829,136.77,136.74,0.05393329]
[1740705254490,7.35737829,136.77,136.74,7.37233329]
[1740705254896,0.03997829,136.77,136.74,0.05393329]
[1740705255200,0.03997829,136.77,136.75,7.3183]
[1740705255399,0.03997829,136.77,136.74,0.05393329]
[1740705255596,7.35747829,136.77,136.74,7.37243329]
[1740705257297,7.35747829,136.77,136.75,7.3182]
[1740705257695,0.03997829,136.77,136.75,7.3182]
[1740705258601,0.03997829,136.77,136.74,0.05393329]
[1740705258802,0.03997829,136.77,136.72,7.3197]
[1740705259102,3.8437,136.78,136.72,7.3197]
[1740705259902,0.05303487,136.76,136.74,0.0519725]
[1740705260097,0.05303487,136.76,136.72,7.3197]
[1740705260402,0.05303487,136.76,136.66,193.0]
[1740705260605,25.8337,136.78,136.65,10.15431277]
[1740705260805,7.3197,136.73,136.69,7.3213]
[1740705261407,0.05055518,136.72,136.7,0.04696627]
[1740705265406,0.05055518,136.72,136.71,7.3204]
[1740705268511,0.05055518,136.72,136.71,26.19778295]
[1740705268911,0.05055518,136.72,136.71,7.3204]
[1740705272718,7.3163,136.79,136.76,7.3173]
[1740705273804,7.3163,136.79,136.77,7.3171]
[1740705273805,7.36438604,136.79,136.77,7.3171]
[1740705274012,0.04808604,136.79,136.77,7.3171]
[1740705275106,7.36448604,136.79,136.76,0.05573346]
[1740705275309,0.04808604,136.79,136.72,18.87738295]
[1740705275506,0.04808604,136.79,136.71,18.87738295]
[1740705275706,2.0381,136.8,136.71,18.87738295]
[1740705276106,2.0381,136.8,136.72,7.3194]
[1740705276309,7.3181,136.76,136.72,7.3194]
[1740705276514,0.04737847,136.77,136.75,0.04746382]
[1740705276714,0.04737847,136.77,136.72,7.3198]
[1740705276914,0.04737847,136.77,136.75,0.05043202]
[1740705277313,7.3178,136.76,136.75,0.05043202]
[1740705278716,0.04737847,136.77,136.69,11.5]
[1740705278913,2.0381,136.8,136.69,11.5]
[1740705279114,2.0381,136.8,136.68,211.87738295]
[1740705279309,7.3198,136.73,136.69,7.3212]
[1740705279918,7.36789679,136.72,136.7,0.05590399]
[1740705280216,2.0381,136.8,136.68,7.3218]
[1740705280420,7.32,136.72,136.7,0.05283494]
[1740705280625,7.32,136.72,136.66,18.87738295]
[1740705280919,11.48,136.77,136.7,0.0489725]
[1740705281119,1.9004,136.76,136.7,0.0489725]
[1740705281320,0.05042957,136.75,136.7,0.0489725]
[1740705282220,7.3191,136.74,136.7,0.0489725]
[1740705283021,7.3191,136.74,136.7,7.3697725]
[1740705284422,7.36892957,136.75,136.71,7.3203]
[1740705285725,7.3189,136.74,136.71,7.3203]
[1740705286526,7.36892957,136.75,136.71,7.3203]
[1740705286818,0.05042957,136.75,136.7,0.0489725]
[1740705287223,0.05042957,136.75,136.72,7.3195]
[1740705287425,0.05042957,136.75,136.7,0.0489725]
[1740705287922,0.05042957,136.75,136.74,7.3188]
[1740705288513,0.05042957,136.75,136.73,0.05005303]
[1740705288722,0.05042957,136.75,136.69,18.87738295]
[1740705288923,0.05042957,136.75,136.69,26.19838295]
[1740705289422,0.05042957,136.75,136.69,7.321]
[1740705289624,7.32,136.72,136.68,7.3219]
[1740705289821,7.32,136.72,136.69,0.0469947]
[1740705290026,0.04836156,136.71,136.69,0.0469947]
[1740705290429,0.04836156,136.71,136.69,7.3680947]
[1740705290920,0.04836156,136.71,136.69,0.0469947]
[1740705291527,7.3209,136.7,136.69,0.0469947]
[1740705291926,0.04836156,136.71,136.69,0.0469947]
[1740705293534,7.36876156,136.71,136.69,0.0469947]
[1740705294033,0.04836156,136.71,136.69,0.0469947]
[1740705294732,7.36896156,136.71,136.69,0.0469947]
[1740705294929,0.04836156,136.71,136.69,0.0469947]
[1740705296430,7.36876156,136.71,136.69,0.0469947]
[1740705299831,0.04836156,136.71,136.69,7.3683947]
[1740705300335,0.04836156,136.71,136.69,0.0469947]
[1740705301037,7.36916156,136.71,136.69,0.0469947]
[1740705302640,0.04836156,136.71,136.69,0.0469947]
[1740705303343,0.04836156,136.71,136.69,7.3681947]
[1740705304139,0.04836156,136.71,136.69,0.0469947]
[1740705304441,7.3209,136.7,136.69,0.0469947]
[1740705306945,0.04836156,136.71,136.69,0.0469947]
[1740705308143,7.36896156,136.71,136.69,0.0469947]
[1740705308645,0.04836156,136.71,136.69,0.0469947]
[1740705309144,0.04836156,136.71,136.69,7.3680947]
[1740705310446,0.04836156,136.71,136.69,0.0469947]
[1740705310643,0.04836156,136.71,136.7,7.3209]
[1740705311744,0.04836156,136.71,136.69,0.0469947]
[1740705312346,7.3209,136.7,136.69,0.0469947]
[1740705313642,0.04836156,136.71,136.69,0.0469947]
[1740705313843,7.36906156,136.71,136.69,0.0469947]
[1740705315152,7.3209,136.7,136.69,0.0469947]
[1740705315342,0.04836156,136.71,136.62,18.87738295]
[1740705315548,2.0272,136.7,136.62,18.87738295]
[1740705315749,2.0272,136.7,136.6,23.28128295]
[1740705315946,2.0272,136.7,136.6,4.4039]
[1740705316549,0.04778081,136.66,136.64,0.04807993]
[1740705318558,7.37088081,136.66,136.64,0.04807993]
[1740705318856,0.04778081,136.66,136.64,0.04807993]
[1740705319748,7.37088081,136.66,136.64,0.04807993]
[1740705320057,0.04778081,136.66,136.64,0.04807993]
[1740705320256,0.04778081,136.66,136.57,18.87738295]
[1740705320457,2.0272,136.7,136.57,18.87738295]
[1740705320848,7.3239,136.65,136.61,7.3257]
[1740705321053,2.0272,136.7,136.55,237.48695108]
[1740705321253,7.3239,136.65,136.6,7.326]
[1740705321451,0.05042484,136.64,136.62,0.05379858]
[1740705323460,7.37492484,136.64,136.62,0.05379858]
[1740705323860,7.3247,136.63,136.62,0.05379858]
[1740705324054,0.05042484,136.64,136.55,1.9212]
[1740705324358,1.8648,136.63,136.54,96.70431276]
[1740705325059,7.3255,136.62,136.58,7.3273]
[1740705325362,0.054803,136.6,136.58,7.3273]
[1740705326060,0.054803,136.6,136.57,0.05466889]
[1740705326762,7.381403,136.6,136.57,0.05466889]
[1740705326963,0.054803,136.6,136.57,0.05466889]
[1740705328059,7.3272,136.59,136.57,0.05466889]
[1740705329057,7.3274,136.58,136.57,0.05466889]
[1740705329464,0.054803,136.6,136.47,0.5527]
[1740705329662,1.9197,136.59,136.47,0.5527]
[1740705329863,7.3282,136.57,136.47,0.5527]
[1740705330158,2.0039,136.58,136.47,0.5527]
[1740705330363,7.3285,136.56,136.52,7.3303]
[1740705330766,0.05206934,136.55,136.53,0.04626123]
[1740705331068,7.3295,136.54,136.53,0.04626123]
[1740705331363,0.05206934,136.55,136.45,1.9601]
[1740705331570,3.8597,136.53,136.44,86.60675395]
[1740705331761,7.3321,136.5,136.45,7.3339]
[1740705332065,3.8597,136.53,136.44,86.60675395]
[1740705332264,3.8597,136.53,136.44,93.94145395]
[1740705332566,0.05409453,136.5,136.47,0.04896955]
[1740705332767,7.3327,136.48,136.47,0.04896955]
[1740705333163,0.05409453,136.5,136.43,10.15431277]
[1740705333367,7.3345,136.45,136.43,10.15431277]
[1740705333568,2.0019,136.47,136.43,10.15431277]
[1740705333966,9.3354,136.47,136.43,10.15431277]
[1740705334159,2.0019,136.47,136.43,10.15431277]
[1740705334476,0.0555031,136.46,136.44,0.04764846]
[1740705336470,120.04919978,136.68,136.44,22.02764846]
[1740705336669,2.0138,136.61,136.45,4.00113836]
[1740705336859,2.0138,136.61,136.46,11.5]
[1740705337058,9.2783,136.64,136.47,1.46552355]
[1740705337266,1.9538,136.64,136.47,1.46552355]
[1740705337560,7.3248,136.63,136.57,7.3274]
[1740705337765,1.9538,136.64,136.57,7.3274]
[1740705337961,0.05315082,136.61,136.47,1.46552355]
[1740705338167,9.2784,136.64,136.59,0.04961271]
[1740705338364,0.0507156,136.55,136.47,194.46552355]
[1740705338565,1.9891,136.63,136.47,1.46552355]
[1740705338760,1.9891,136.63,136.57,7.3278]
[1740705339163,9.2784,136.64,136.59,7.3268]
[1740705339164,1.9538,136.64,136.59,7.3268]
[1740705339766,0.0505958,136.63,136.6,0.0504839]
[1740705339966,2.0138,136.65,136.54,2.5751]
[1740705340166,0.05391594,136.59,136.57,0.04740651]
[1740705340364,0.05391594,136.59,136.58,7.3274]
[1740705340567,0.05391594,136.59,136.57,0.04740651]
[1740705341473,2.0138,136.65,136.57,0.04740651]
[1740705342375,2.0138,136.65,136.59,7.3268]
[1740705342764,0.04721235,136.63,136.61,0.04968227]
[1740705354977,0.04721235,136.63,136.61,7.37528227]
[1740705355378,0.04721235,136.63,136.61,0.04968227]
[1740705356378,7.3252,136.62,136.61,0.04968227]
[1740705356681,0.04721235,136.63,136.61,0.04968227]
[1740705358177,0.04721235,136.63,136.61,7.37518227]
[1740705358381,0.04721235,136.63,136.61,0.04968227]
[1740705360784,0.04721235,136.63,136.62,7.3252]
[1740705361179,0.04721235,136.63,136.61,0.04968227]
[1740705362985,0.04721235,136.63,136.62,7.3252]
[1740705366983,0.04721235,136.63,136.61,0.04968227]
[1740705367183,0.04721235,136.63,136.61,7.37528227]
[1740705368092,7.3252,136.62,136.61,0.04968227]
[1740705372893,0.04721235,136.63,136.61,0.04968227]
[1740705374597,0.04721235,136.63,136.62,7.3252]
[1740705376398,0.04721235,136.63,136.61,0.04968227]
[1740705377397,7.37221235,136.63,136.61,0.04968227]
[1740705378500,0.04721235,136.63,136.61,0.04968227]
[1740705379898,43.96,136.61,136.51,27.72335631]
[1740705380098,1.32000479,136.6,136.4,28.83181507]
[1740705380297,7.336,136.43,136.4,28.83181507]
[1740705380499,7.336,136.43,136.23,299.05997457]
[1740705380500,11.82,136.42,136.25,18.76817148]
[1740705380705,21.99,136.41,136.25,18.76817148]
[1740705381002,11.82,136.42,136.25,18.76817148]
[1740705381003,21.99,136.39,136.25,18.76817148]
[1740705381202,59.7055765,136.38,136.37,0.04868256]
[1740705381405,76.0500952,136.38,136.37,8.256e-05]
[1740705381603,90.7119952,136.38,136.23,299.05997457]
[1740705381804,21.99,136.36,136.23,299.05997457]
[1740705382000,37.7355765,136.36,136.23,299.05997457]
[1740705382303,37.7355765,136.36,136.35,73.27019425]
[1740705382495,58.43905091,136.36,136.22,1.942]
[1740705382701,21.99,136.34,136.22,1.942]
[1740705382896,8.92876704,136.31,136.28,0.05561146]
[1740705383094,0.05533624,136.3,136.28,0.05561146]
[1740705383502,13.99968992,136.3,136.28,0.05561146]
[1740705383803,10.91158992,136.3,136.28,0.05561146]
[1740705384002,8.92876704,136.35,136.28,7.39911146]
[1740705384204,131.91824119,136.38,136.28,0.05561146]
[1740705384399,6.23226919,136.37,136.28,0.05561146]
[1740705384604,6.23226919,136.36,136.22,201.262]
[1740705384898,0.04723701,136.34,136.31,0.0473208]
[1740705385103,122.98947415,136.38,136.27,7.3436]
[1740705385301,0.05192497,136.34,136.29,0.05339362]
[1740705385501,6.12881119,136.33,136.29,0.05339362]
[1740705385698,6.12798925,136.32,136.23,1.4681054]
[1740705385903,6.12727462,136.31,136.23,165.33676934]
[1740705386201,1.9004,136.34,136.23,163.86866394]
[1740705386502,37.23477566,136.33,136.23,163.86866394]
[1740705386693,15.24477566,136.32,136.23,163.86866394]
[1740705386894,15.24477566,136.31,136.17,7.3491]
[1740705387096,0.05533295,136.29,136.27,0.04891269]
[1740705387297,17.90337525,136.28,136.17,171.21776394]
[1740705387501,1.9366,136.27,136.17,171.21776394]
[1740705387694,1.9366,136.27,136.21,0.05448923]
[1740705387899,0.0536617,136.23,136.21,0.05448923]
[1740705388099,0.0536617,136.23,136.21,163.92315317]
[1740705388299,0.0536617,136.23,136.21,0.05448923]
[1740705388498,0.0536617,136.23,135.92,44.0779]
[1740705388804,1.9366,136.27,135.98,216.42770453]
[1740705389099,15.73046049,136.26,136.13,7.3511]
[1740705389300,5.8173146,136.25,136.06,12.02]
[1740705389505,34.86105104,136.26,136.07,1.9922]
[1740705389803,34.86105104,136.26,136.14,0.04990696]
[1740705389804,0.05188266,136.17,136.14,0.04990696]
[1740705390206,12.02,136.21,136.07,1.9922]
[1740705390498,0.05117695,136.17,136.14,0.04797135]
[1740705391301,0.05117695,136.17,136.03,59.89990661]
[1740705391505,0.05117695,136.17,136.03,223.76857055]
[1740705391696,23.9934,136.2,136.03,59.89990661]
[1740705391901,2.0034,136.2,136.03,59.89990661]
[1740705392299,2.0034,136.2,136.04,7.356]
[1740705392499,0.05399545,136.13,136.1,0.05494049]
[1740705392900,12.06,136.14,136.0,1.8677]
[1740705393206,0.04920565,136.13,136.1,0.05188066]
[1740705393507,12.06,136.14,136.02,7.3574]
[1740705394009,12.06,136.14,136.02,171.22606394]
[1740705394305,12.06,136.14,136.02,163.86866394]
[1740705394505,2.0091,136.13,136.02,163.86866394]
[1740705394702,0.04920027,136.09,136.07,0.04713553]
[1740705395005,0.04920027,136.09,136.02,9.95050184]
[1740705395811,0.04920027,136.09,135.94,1.874]
[1740705396109,1.8863,136.12,136.04,0.04586846]
[1740705396505,0.0503355,136.03,135.94,1.874]
[1740705396705,1.8863,136.12,135.94,1.874]
[1740705396706,12.06,136.07,135.94,9.95050184]
[1740705396912,7.3554,136.06,135.94,9.95050184]
[1740705397101,0.05642546,136.0,135.97,9.95050184]
[1740705397304,0.05642546,136.0,135.9,211.54050184]
[1740705397504,12.06,136.07,135.9,201.59]
[1740705398108,12.06,136.07,135.95,7.3613]
[1740705398309,0.04775588,136.0,135.9,211.54050184]
[1740705398700,2.028,136.06,135.9,211.54050184]
[1740705398912,0.05130919,135.96,135.9,211.54050184]
[1740705399111,2.028,136.06,135.9,211.54050184]
[1740705399311,0.05640751,135.94,135.9,9.95050184]
[1740705399613,2.028,136.06,135.9,9.95050184]
[1740705399804,0.04724691,135.93,135.91,7.3634]
[1740705400000,2.028,136.06,135.91,7.3634]
[1740705400201,2.028,136.06,135.84,12.06]
[1740705400202,7.361,135.96,135.83,7.3678]
[1740705400404,0.05050492,135.93,135.83,7.3678]
[1740705400605,12.1,135.92,135.88,5.7242]
[1740705400907,12.16,135.94,135.73,1.5897]
[1740705401108,0.05192468,135.91,135.73,1.5897]
[1740705401411,12.16,135.94,135.87,7.3653]
[1740705401611,0.05034911,135.83,135.77,12.16]
[1740705401810,0.05034911,135.83,135.73,23.70020184]
[1740705402007,12.16,135.94,135.73,11.54020184]
[1740705402310,0.05583309,135.79,135.73,9.95050184]
[1740705402613,0.05583309,135.79,135.65,5.9406]
[1740705402614,0.04936449,135.77,135.65,5.9406]
[1740705403108,12.28,135.79,135.65,5.9406]
[1740705403309,0.04836861,135.72,135.65,5.9406]
[1740705403506,12.28,135.84,135.65,5.9406]
[1740705403915,12.28,135.89,135.65,5.9406]
[1740705404110,12.28,135.89,135.66,12.3]
[1740705404308,12.28,135.89,135.66,14.165]
[1740705404508,12.28,135.89,135.82,7.3679]
[1740705404708,6.31e-06,135.79,135.76,0.04727701]
[1740705404908,12.28,135.89,135.76,5.81197701]
[1740705405112,12.3,135.94,135.76,5.7647]
[1740705405308,19.6619,135.94,135.76,5.7647]
[1740705405817,12.3,135.94,135.76,198.7647]
[1740705406013,0.04991812,135.86,135.84,0.04777375]
[1740705406409,12.3,135.94,135.76,198.7647]
[1740705406617,0.05080578,135.86,135.84,0.04981542]
[1740705407008,12.3,135.94,135.76,198.7647]
[1740705407318,1.9125,135.96,135.84,0.04671834]
[1740705407511,12.28,135.97,135.91,7.3634]
[1740705407917,12.28,135.97,135.82,12.28]
[1740705408514,0.05408714,135.91,135.88,0.0528667]
[1740705408813,12.28,135.97,135.82,12.28]
[1740705409218,19.6403,135.97,135.82,12.28]
[1740705409415,19.6403,135.97,135.82,22.23034699]
[1740705409615,12.28,135.97,135.82,22.23034699]
[1740705410016,0.04711688,135.91,135.88,0.04961475]
[1740705410218,12.28,135.97,135.88,0.04961475]